{"text_format":"3","workbook":"xlsx","n_sheets":3,"sheets":["DropDown","Personalkosten Angestellte","Personalkosten freie DN"],"read":"whole","date_system":"1900"}

{"sheet":"DropDown","index":0,"n_rows":2,"n_cols":1,"rows_kept":2,"hidden":true}
["davon beim FGÖ beantragter Förderbetrag (bitte Zahl eingeben)"]
["davon maximaler Förderbetrag"]

{"sheet":"Personalkosten Angestellte","index":1,"n_rows":30,"n_cols":7,"rows_kept":30,"merged":[[0,0,0,6],[1,0,1,6],[2,2,2,3],[2,5,2,6],[3,1,3,3],[3,4,3,6],[4,1,4,6],[5,0,5,6],[6,1,6,5]]}
["Personalkostenkalkulation für bestehendes Dienstverhältnis/Neuanstellung/Aufstockung"]
[]
["Lohnnebenkosten Stand 01.01.2025 (@wko 2025)",{"$f":"(20.98+3.7+3+1.53)/100","v":{"v":0.2921,"d":"29.21%"}},"für den Monatsbruttobezug (ohne Sonderzahl.)",null,{"$f":"(20.98+3.7+3+1.53)/100","v":{"v":0.2921,"d":"29.21%"}},"für die Sonderzahlungen"]
[null,"Dieser Satz setzt sich wie folgt zusammen:\n20,98% Sozialversicherungsbeitrag Dienstgeber\n3,78 % Dienstgeberbeitrag (DB)\n3 % Kommunalsteuer\n1,53 % Mitarbeitervorsorge (MV)",null,null,"Dieser Satz setzt sich wie folgt zusammen:\n20,98 % Sozialversicherungsbeitrag Dienstgeber\n3,78 % Dienstgeberbeitrag (DB)\n3 % Kommunalsteuer\n1,53 % Mitarbeitervorsorge (MV)"]
[null,"Änderungen der Lohnnebenkostensätze sind ggf. selbst anzupassen - dazu bitte die jeweilige Summe anklicken und die Formel korrigieren!"]
[]
[null,"Bitte hier die Dienstnehmer/-innen eintragen",{"$nulls":4},"Beispiel"]
["Name der Dienstnehmerin/\ndes Dienstnehmers",{"$nulls":5},"Maria Musterfrau"]
["Bitte das entspr. Dienstverhältnis aus \nder Dropdown-Liste auswählen",{"$nulls":5},"Bestehendes Dienstverhältnis"]
["Tätigkeitbereich im Projekt",{"$nulls":5},"Projektleiterin"]
["Monatsbruttobezug exkl. LNK   (i)\n(bitte nur Zahl eingeben!)",{"$nulls":5},{"v":2500,"d":"€  2,500.00"}]
["Arbeitszeit/Woche in Stunden\n(bitte nur Zahl eingeben!)",{"$nulls":5},38.5]
["Stunden/Woche für das Projekt\n(bitte nur Zahl eingeben!)",{"$nulls":5},5]
["Start der Projekttätigkeit (TT.MM.JJJJ)"," ",{"$nulls":4},"2020-01-01"]
["Ende der Projekttätigkeit (TT.MM.JJJJ)",{"$nulls":5},"2021-06-30"]
["Laufzeit in Monaten\n(wird automatisch berechnet)",{"$f":"IF(B15=\"\",\"\",ROUND(12*YEARFRAC(EOMONTH(B14,0),EOMONTH(B15,0),0)-1/12,0)+IF(DAY(B14)<15,0.5,0)+IF(DAY(B15)<15,0,0.5))","v":""},"","","","",{"$f":"IF(G15=\"\",\"\",ROUND(12*YEARFRAC(EOMONTH(G14,0),EOMONTH(G15,0),0)-1/12,0)+IF(DAY(G14)<15,0.5,0)+IF(DAY(G15)<15,0,0.5))","v":18}]
["Monatsbruttobezug Projektstunden",{"$f":"B11/B12*B13","v":{"$error":"#DIV/0!"}},{"$error":"#DIV/0!"},{"$error":"#DIV/0!"},{"$error":"#DIV/0!"},{"$error":"#DIV/0!"},{"$f":"G11/G12*G13","v":{"v":324.67532467532465,"d":"€  324.68"}}]
["Bruttobezug für den Projektzeitraum",{"$f":"B17*B16","v":{"$error":"#DIV/0!"}},{"$error":"#DIV/0!"},{"$error":"#DIV/0!"},{"$error":"#DIV/0!"},{"$error":"#DIV/0!"},{"$f":"G17*G16","v":{"v":5844.155844155844,"d":"€  5,844.16"}}]
["Aliquote SZ für den Projektzeitraum",{"$f":"B17/12*B16*2","v":{"$error":"#DIV/0!"}},{"$error":"#DIV/0!"},{"$error":"#DIV/0!"},{"$error":"#DIV/0!"},{"$error":"#DIV/0!"},{"$f":"G17/12*G16*2","v":{"v":974.0259740259739,"d":"€  974.03"}}]
["LNK",{"$f":"B18*$B$3","v":{"$error":"#DIV/0!"}},{"$error":"#DIV/0!"},{"$error":"#DIV/0!"},{"$error":"#DIV/0!"},{"$error":"#DIV/0!"},{"$f":"G18*$B$3","v":{"v":1707.077922077922,"d":"€  1,707.08"}}]
["LNK SZ",{"$f":"B19*$E$3","v":{"$error":"#DIV/0!"}},{"$error":"#DIV/0!"},{"$error":"#DIV/0!"},{"$error":"#DIV/0!"},{"$error":"#DIV/0!"},{"$f":"G19*$E$3","v":{"v":284.512987012987,"d":"€  284.51"}}]
["Buttobezug inkl. LNK für den \nProjektzeitraum   (i)",{"$f":"IFERROR(ROUND(SUM(B18:B21),2),\"\")","v":""},"","","","",{"$f":"IFERROR(ROUND(SUM(G18:G21),2),\"\")","v":{"v":8809.77,"d":"€ 8,809.77"}}]
["Buttostundensatz inkl. LNK   (i)",{"$f":"IFERROR(ROUND(SUM(B18:B21)/B16/4.33/B13,2),\"\")","v":""},{"$f":"IFERROR(ROUND(SUM(C18:C21)/C16/4.33/C13,2),\"\")","v":""},"","","",{"v":22.61,"d":"€ 22.61"}]
["(i) Hier werden diverse Hilfestellungen und Informationen zur Verfügung gestellt. Zum Anzeigen bitte die jeweilige Zelle auswählen."]
[]
[]
[]
["Bestehendes Dienstverhältnis"]
["Neuanstellung"]
["Aufstockung"]

{"sheet":"Personalkosten freie DN","index":2,"n_rows":20,"n_cols":7,"rows_kept":20,"merged":[[0,0,0,6],[1,0,1,6],[2,2,2,3],[2,5,2,6],[3,1,3,3],[3,4,3,6],[4,1,4,6],[5,0,5,6],[6,1,6,5]]}
["Personalkostenkalkulation für freies Dienstverhältnis MIT Anmeldung bei der ÖGK durch die/den Arbeitgeber/in"]
[]
["Lohnnebenkosten Stand 01.01.2025 (@wko 2025):",{"$f":"(20.48+1.53)/100","v":{"v":0.22010000000000002,"d":"22.01%"}},"für das monatliche Honorar"]
[null,"Dieser Satz setzt sich wie folgt zusammen:\n20,48% Sozialversicherungsbeitrag Dienstgeber\n1,53 % Mitarbeitervorsorge (MV)"]
[null,"Änderungen der Lohnnebenkostensätze sind ggf. selbst anzupassen - dazu bitte die jeweilige Summe anklicken und die Formel korrigieren!"]
[]
[null,"Bitte hier die Dienstnehmer/-innen eintragen",{"$nulls":4},"Beispiel"]
["Name der Dienstnehmerin/\ndes Dienstnehmers",{"$nulls":5},"Maria Musterfrau"]
["Tätigkeitbereich im Projekt",{"$nulls":5},"Wissenschaftliche Mitarbeiterin"]
["Dienstnehmer/in ab (TT.MM.JJJJ)",{"$nulls":5},"2020-01-01"]
["Monatsbruttobezug exkl. LNK   (i)\n(bitte nur Zahl eingeben!)",{"$nulls":5},{"v":490,"d":"€  490.00"}]
["Arbeitszeit/Woche in Stunden\n(bitte nur Zahl eingeben!)",{"$nulls":5},5]
["Start der Projekttätigkeit (TT.MM.JJJJ)",{"$nulls":5},"2020-01-01"]
["Ende der Projekttätigkeit (TT.MM.JJJJ)",{"$nulls":5},"2021-06-30"]
["Laufzeit in Monaten\n(wird automatisch berechnet)",{"$f":"IF(B14=\"\",\"\",ROUND(12*YEARFRAC(EOMONTH(B13,0),EOMONTH(B14,0),0)-1/12,0)+IF(DAY(B13)<15,0.5,0)+IF(DAY(B14)<15,0,0.5))","v":""},"","","","",{"$f":"IF(G14=\"\",\"\",ROUND(12*YEARFRAC(EOMONTH(G13,0),EOMONTH(G14,0),0)-1/12,0)+IF(DAY(G13)<15,0.5,0)+IF(DAY(G14)<15,0,0.5))","v":18}]
["Bruttobezug für den Projektzeitraum",{"$f":"B11*B15","v":{"$error":"#VALUE!"}},{"$error":"#VALUE!"},{"$error":"#VALUE!"},{"$error":"#VALUE!"},{"$error":"#VALUE!"},{"$f":"G11*G15","v":{"v":8820,"d":"€  8,820.00"}}]
["LNK",{"$f":"ROUND(B16*$B$3,2)","v":{"$error":"#VALUE!"}},{"$error":"#VALUE!"},{"$error":"#VALUE!"},{"$error":"#VALUE!"},{"$error":"#VALUE!"},{"$f":"ROUND(G16*$B$3,2)","v":{"v":1941.28,"d":"€  1,941.28"}}]
["Buttobezug inkl. LNK für den \nProjektzeitraum   (i)",{"$f":"IFERROR(ROUND(SUM(B16:B17),2),\"\")","v":""},"","","","",{"$f":"IFERROR(ROUND(SUM(G16:G17),2),\"\")","v":{"v":10761.28,"d":"€ 10,761.28"}}]
["Buttostundensatz inkl. LNK   (i)",{"$f":"IFERROR(ROUND(SUM(B16:B17)/B15/4.33/B12,2),\"\")","v":""},"","","","",{"$f":"IFERROR(ROUND(SUM(G16:G17)/G15/4.33/G12,2),\"\")","v":{"v":27.61,"d":"€ 27.61"}}]
["(i) Hier werden diverse Hilfestellungen und Informationen zur Verfügung gestellt. Zum Anzeigen bitte die jeweilige Zelle auswählen."]